bitfinex-derivatives/quotes_SOLF0:USTF0_20250207
["timestamp","ask_amount","ask_price","bid_price","bid_amount"]
[1738940552987,35.0206905,201.29,201.11,2.222]
[1738940553793,0.03191799,201.22,201.06,34.3292905]
[1738940554093,34.3292905,201.21,201.18,0.0330659]
[1738940554387,4.9674,201.2,201.18,6.59e-05]
[1738940554594,34.3292905,201.21,201.07,4.9706]
[1738940554797,35.0206905,201.29,201.13,4.969]
[1738940554997,35.0206905,201.29,201.09,34.3292905]
[1738940555191,34.3292905,201.22,201.03,2.2392]
[1738940555397,34.3292905,201.18,201.03,2.2392]
[1738940555598,34.3292905,201.2,201.17,9.09e-05]
[1738940555797,0.6937,201.19,200.98,3.0953]
[1738940555994,4.9709,201.06,201.0,4.9722]
[1738940556297,34.3292905,201.12,200.98,3.0953]
[1738940556500,34.3292905,201.08,200.98,3.0953]
[1738940556896,34.3292905,201.08,200.95,2.2392]
[1738940557097,0.03554111,201.05,201.01,0.03773971]
[1738940557400,0.03554111,201.05,200.95,2.2392]
[1738940557401,34.3292905,201.12,200.97,34.3292905]
[1738940557697,0.03177867,201.05,200.98,4.9728]
[1738940557894,0.03177867,201.05,201.01,0.03691752]
[1738940558301,0.03177867,201.05,201.03,4.9715]
[1738940558692,6.2,201.18,201.02,2.0789]
[1738940558897,0.6937,201.19,201.02,2.0789]
[1738940559996,0.03142794,201.13,201.08,0.03136117]
[1738940560300,4.9694,201.12,201.08,0.03136117]
[1738940560798,0.03142794,201.13,201.08,0.03136117]
[1738940561001,4.9699,201.1,201.08,0.03136117]
[1738940561300,0.03142794,201.13,201.08,0.03136117]
[1738940561699,4.9699,201.1,201.08,0.03136117]
[1738940562098,0.03142794,201.13,201.08,0.03136117]
[1738940562798,4.9699,201.1,201.08,0.03136117]
[1738940563194,34.3292905,201.12,200.96,34.3292905]
[1738940563594,4.9701,201.1,201.01,4.972]
[1738940564002,4.9701,201.1,200.96,34.3292905]
[1738940564203,4.97,201.1,200.96,34.3292905]
[1738940564406,169.24796471,201.15,200.97,2.0082]
[1738940564600,0.03813809,201.05,201.01,0.03671481]
[1738940564798,0.03813809,201.05,201.02,4.9716]
[1738940564998,0.03813809,201.05,201.01,0.03671481]
[1738940564999,34.3292905,201.12,200.97,2.0082]
[1738940565195,4.97,201.1,201.03,4.9715]
[1738940565500,0.0361422,201.06,201.01,0.03351039]
[1738940566003,0.0361422,201.06,201.01,5.00561039]
[1738940566503,0.0361422,201.06,201.01,0.03351039]
[1738940567104,0.0361422,201.06,201.03,4.9715]
[1738940567404,0.0361422,201.06,201.01,0.03351039]
[1738940568304,4.9714,201.04,201.01,0.03351039]
[1738940568497,0.0361422,201.06,201.01,0.03351039]
[1738940569503,4.9718,201.02,201.01,0.03351039]
[1738940569703,34.3292905,201.03,200.93,2.8165]
[1738940569902,34.3292905,200.99,200.93,2.8165]
[1738940570108,34.3292905,201.03,200.93,2.8165]
[1738940570306,34.3292905,201.07,200.93,2.8165]
[1738940570904,34.3292905,201.03,200.93,2.8165]
[1738940571209,4.9726,200.99,200.98,0.03321848]
[1738940572206,0.03593434,201.02,200.98,0.03321848]
[1738940572910,0.03593434,201.02,200.87,4.9755]
[1738940572911,34.3292905,201.0,200.87,4.9755]
[1738940573211,34.3292905,201.0,200.81,6.8323]
[1738940573416,34.3292905,201.0,200.88,4.9751]
[1738940573606,34.3292905,201.0,200.84,34.3292905]
[1738940574108,0.03815215,200.94,200.9,0.03484002]
[1738940574314,39.3010905,201.03,200.9,0.03484002]
[1738940574510,39.3010905,201.03,200.81,295.8323]
[1738940574511,169.24796471,201.03,200.92,34.3292905]
[1738940574811,5.22338579,201.06,201.0,68.658581]
[1738940575111,209.7426299,201.09,201.08,4.9703]
[1738940575308,145.81366883,201.09,201.08,4.9703]
[1738940575813,144.81366883,201.09,201.08,4.9703]
[1738940576007,130.75626883,201.09,201.08,4.9703]
[1738940576213,49.97808004,201.09,201.08,4.9703]
[1738940576408,49.97808004,201.09,201.08,39.2995905]
[1738940576609,49.97808004,201.09,201.08,328.2995905]
[1738940576912,49.97808004,201.09,201.08,293.9703]
[1738940577125,42.38678004,201.09,201.08,293.9703]
[1738940577509,0.03344442,201.11,201.08,294.17384644]
[1738940578010,0.03344442,201.11,201.08,5.17384644]
[1738940579306,0.03344442,201.11,201.09,39.2993905]
[1738940579510,0.03344442,201.11,201.1,137.16034391]
[1738940580113,1.0,201.23,201.13,34.3292905]
[1738940580315,34.3292905,201.5,201.21,34.3292905]
[1738940580316,2.141,201.34,201.21,34.3292905]
[1738940580510,4.9634,201.37,201.25,34.3292905]
[1738940580716,1.0,201.39,201.29,34.3292905]
[1738940580912,1.0,201.48,201.33,34.3292905]
[1738940581113,4.9616,201.44,201.33,34.3292905]
[1738940581311,1.0,201.48,201.33,39.2932905]
[1738940581611,4.9621,201.42,201.38,0.03219203]
[1738940582112,0.03301133,201.43,201.38,0.03219203]
[1738940583207,34.36230183,201.43,201.38,0.03219203]
[1738940583410,34.36230183,201.43,201.36,20.54720307]
[1738940583608,34.3292905,201.39,201.35,54.79254153]
[1738940583812,34.3292905,201.39,201.35,21.97554153]
[1738940584013,4.9634,201.36,201.35,4.54424153]
[1738940584313,1.0,201.38,201.35,4.54424153]
[1738940584622,34.3292905,201.47,201.35,4.54424153]
[1738940584623,1.0,201.44,201.35,4.54424153]
[1738940584814,0.03592743,201.39,201.34,0.0382754]
[1738940585313,0.03592743,201.39,201.34,34.3675659]
[1738940585618,4.9636,201.36,201.34,0.0382754]
[1738940586017,35.3292905,201.38,201.22,1.9818]
[1738940586212,4.9662,201.25,201.22,1.9818]
[1738940586414,34.3292905,201.3,201.21,82.1888123]
[1738940586613,34.3292905,201.26,201.21,82.1888123]
[1738940586809,34.3292905,201.3,201.14,1.9818]
[1738940587215,1.0,201.29,201.14,1.9818]
[1738940587417,0.03671977,201.24,201.2,0.03207527]
[1738940588111,4.9671,201.21,201.2,0.03207527]
[1738940588311,34.3292905,201.23,201.07,1.95]
[1738940588511,34.3292905,201.19,201.07,1.95]
[1738940588723,34.3292905,201.23,201.08,34.3292905]
[1738940588915,1.0,201.24,201.08,34.3292905]
[1738940589223,1.0,201.24,201.12,34.3292905]
[1738940589516,4.9672,201.21,201.12,34.3292905]
[1738940589822,0.03726431,201.18,201.14,0.03349429]
[1738940590018,3.22855765,201.17,201.14,0.03349429]
[1738940590220,3.22936557,201.16,201.14,0.03349429]
[1738940590420,1.24206368,201.15,201.14,0.03349429]
[1738940590819,3.22940343,201.15,201.14,0.03349429]
[1738940591016,0.03726431,201.18,201.14,0.03349429]
[1738940591219,0.78325304,201.29,201.17,34.3292905]
[1738940591519,1.0,201.34,201.22,34.3292905]
[1738940591721,169.09964412,201.36,201.28,4.9653]
[1738940591926,169.09964412,201.36,201.22,34.3292905]
[1738940592218,4.9631,201.38,201.22,34.3292905]
[1738940592424,1.0,201.39,201.26,34.3292905]
[1738940592622,0.0339773,201.31,201.27,0.03825445]
[1738940593118,1.0,201.45,201.3,68.658581]
[1738940593318,0.99285146,201.44,201.36,34.3292905]
[1738940593518,0.99285146,201.44,201.42,4.9619]
[1738940593920,169.09964412,201.48,201.4,34.3292905]
[1738940594124,169.09964412,201.48,201.44,34.3292905]
[1738940594527,0.03331027,201.46,201.42,0.03581215]
[1738940595028,1.0,201.45,201.28,34.3292905]
[1738940595631,207.4870676,201.44,201.32,34.3292905]
[1738940595921,207.4870676,201.44,201.37,4.963]
[1738940596129,207.4870676,201.44,201.36,34.3292905]
[1738940596418,0.03430868,201.43,201.41,4.962]
[1738940596827,8.68e-06,201.43,201.41,4.962]
[1738940597019,8.68e-06,201.43,201.38,0.03242892]
[1738940597220,38.38742348,201.49,201.42,34.3292905]
[1738940597623,38.38742348,201.49,201.42,39.2911905]
[1738940597825,169.09964412,201.47,201.38,37.1162905]
[1738940598225,169.09964412,201.47,201.42,4.9618]
[1738940598422,169.09964412,201.47,201.42,34.3292905]
[1738940598623,1.031e-05,201.45,201.4,34.36665194]
[1738940598824,28.45573969,201.46,201.45,4.9612]
[1738940599021,20.79493969,201.46,201.41,34.3292905]
[1738940599425,20.79493969,201.46,201.4,0.03736144]
[1738940599722,3.1499,201.5,201.4,0.03736144]
[1738940599920,3.1499,201.5,201.41,34.3292905]
[1738940600123,0.0333262,201.45,201.41,34.3292905]
[1738940601229,0.0333262,201.45,201.4,0.03736144]
[1738940601726,0.0333262,201.45,201.41,34.3292905]
[1738940601928,0.0333262,201.45,201.4,0.03736144]
[1738940602321,1.0,201.44,201.4,0.03736144]
[1738940602928,1.0,201.44,201.32,4.9642]
[1738940603226,1.24054778,201.43,201.26,34.3292905]
[1738940603528,1.24054778,201.42,201.2,323.3292905]
[1738940603822,1.98515355,201.43,201.2,323.3292905]
[1738940603823,1.24054778,201.41,201.28,34.3292905]
[1738940604022,4.9619,201.43,201.32,34.3292905]
[1738940604228,0.03687376,201.37,201.36,34.3292905]
[1738940604730,1.0,201.44,201.36,34.3292905]
[1738940604929,5.14e-05,201.39,201.34,0.03263619]
[1738940605128,5.14e-05,201.39,201.38,34.3292905]
[1738940605431,5.14e-05,201.39,201.3,323.3292905]
[1738940605630,5.14e-05,201.39,201.3,34.3292905]
[1738940605829,5.14e-05,201.39,201.34,34.3292905]
[1738940606232,1.0,201.44,201.42,4.9618]
[1738940606633,2.1515,201.48,201.38,34.3292905]
[1738940606831,0.03694138,201.45,201.42,4.9617]
[1738940607136,0.03694138,201.45,201.41,0.03570149]
[1738940607334,1.0,201.44,201.41,0.03570149]
[1738940607629,1.0,201.44,201.34,34.3292905]
[1738940607832,2.1515,201.48,201.38,34.3292905]
[1738940608035,0.03649988,201.45,201.4,0.03623823]
[1738940608234,0.03649988,201.45,201.38,34.3292905]
[1738940608730,1.0,201.44,201.4,0.0322662]
[1738940609033,1.0,201.44,201.3,34.3292905]
[1738940609227,4.9625,201.4,201.3,34.3292905]
[1738940609425,1.0,201.44,201.3,34.3292905]
[1738940609636,1.0,201.44,201.36,4.9633]
[1738940609826,168.5767742,201.42,201.34,34.3292905]
[1738940610026,168.5767742,201.42,201.37,4.9632]
[1738940610234,4.9625,201.4,201.3,34.3292905]
[1738940610438,0.03680074,201.4,201.36,0.03174784]
[1738940610738,36.57006596,201.39,201.18,34.3292905]
[1738940610938,34.3292905,201.35,201.18,34.3292905]
[1738940611141,34.3292905,201.31,201.19,4.9674]
[1738940611437,1.24077546,201.3,201.14,34.3292905]
[1738940611632,1.24077546,201.29,201.14,34.3292905]
[1738940611941,0.03608911,201.24,201.2,0.03586236]
[1738940612137,4.9674,201.2,201.1,34.3292905]
[1738940612336,1.0,201.23,201.1,34.3292905]
[1738940613335,0.03455757,201.19,201.1,34.3292905]
[1738940613534,0.03455757,201.19,201.14,0.03193652]
[1738940613940,1.0,201.18,201.14,0.03193652]
[1738940614644,0.03455757,201.19,201.14,34.36122702]
[1738940614842,0.03455757,201.19,201.14,0.03193652]
[1738940615341,1.0,201.18,201.04,34.3292905]
[1738940615741,3.8797,201.18,201.04,34.3292905]
[1738940616244,3.8797,201.18,201.08,34.3292905]
[1738940616647,0.03342578,201.13,201.11,34.3292905]
[1738940617347,0.03342578,201.13,201.11,39.2988905]
[1738940617646,0.03342578,201.13,201.11,34.3292905]
[1738940617844,0.03342578,201.13,201.1,4.9697]
[1738940618144,0.03342578,201.13,201.09,0.03376475]
[1738940618345,1.03342578,201.13,201.09,0.03376475]
[1738940619344,1.24223069,201.12,201.01,289.0]
[1738940619542,1.24226102,201.11,200.96,34.3292905]
[1738940619842,1.24226102,201.1,201.02,4.9718]
[1738940620144,1.24226102,201.09,200.96,34.3292905]
[1738940620350,10.211,201.11,201.05,4.9711]
[1738940620551,1.24244353,201.1,200.96,34.3292905]
[1738940620744,0.03421206,201.05,201.0,0.03307738]
[1738940621443,0.03421206,201.05,200.88,34.3292905]
[1738940621644,1.24289022,201.04,200.88,35.32490977]
[1738940621944,1.24293607,201.03,200.88,35.32490977]
[1738940622151,4.9726,201.0,200.92,4.9743]
[1738940622343,34.3292905,201.04,200.88,0.99561927]
[1738940622545,34.3292905,201.0,200.88,0.99561927]
[1738940622748,4.9731,200.97,200.94,0.03535673]
[1738940622947,0.03444292,200.98,200.94,0.03535673]
[1738940623245,34.3292905,200.96,200.88,0.99561927]
[1738940623645,34.3292905,200.96,200.8,34.3292905]
[1738940624045,4.9741,200.93,200.8,34.3292905]
[1738940624345,0.03688837,200.9,200.86,0.03525164]
[1738940624845,1.03688837,200.9,200.72,2.9132]
[1738940625149,4.9758,200.86,200.71,0.136]
[1738940625351,34.3292905,200.88,200.64,6.16]
[1738940625553,34.3292905,200.79,200.62,34.3292905]
[1738940625744,5.1724,200.78,200.63,1.9017296]
[1738940625940,34.3292905,200.75,200.63,0.99685989]
[1738940626147,0.03378823,200.73,200.68,0.03284177]
[1738940626647,1.03378823,200.73,200.68,0.03284177]
[1738940627749,6.01298823,200.73,200.68,0.03284177]
[1738940627945,1.03378823,200.73,200.65,14.94]
[1738940628153,6.01298823,200.73,200.65,14.94]
[1738940628449,1.03378823,200.73,200.65,14.94]
[1738940628644,35.36307873,200.73,200.65,14.94]
[1738940628848,34.3292905,200.69,200.65,6.55049884]
[1738940629052,34.3292905,200.69,200.67,0.03374657]
[1738940629343,1.0,200.68,200.54,34.3292905]
[1738940629549,1.0,200.68,200.54,0.99730727]
[1738940630045,39.3104905,200.65,200.55,4.9833]
[1738940630246,1.0,200.68,200.54,0.99730727]
[1738940630450,8.683e-05,200.62,200.61,4.9819]
[1738940630646,8.683e-05,200.62,200.54,35.32659777]
[1738940630846,1.0,200.68,200.54,0.99730727]
[1738940631048,34.3292905,200.65,200.54,0.99730727]
[1738940631248,34.3292905,200.65,200.5,34.3292905]
[1738940631452,1.0,200.67,200.5,34.3292905]
[1738940631646,1.0,200.67,200.54,34.3292905]
[1738940631845,0.03433934,200.6,200.55,0.03434311]
[1738940632049,0.03433934,200.6,200.57,4.983]
[1738940632251,0.03433934,200.6,200.55,0.03434311]
[1738940632456,3.934e-05,200.6,200.55,0.03434311]
[1738940632754,3.934e-05,200.6,200.58,4.9827]
[1738940633050,3.934e-05,200.6,200.55,0.03434311]
[1738940633848,4.9825,200.59,200.55,0.03434311]
[1738940634049,3.934e-05,200.6,200.55,0.03434311]
[1738940635150,3.934e-05,200.6,200.55,6.619e-05]
[1738940635553,3.934e-05,200.6,200.59,4.9825]
[1738940635856,3.934e-05,200.6,200.55,6.619e-05]
[1738940636049,3.934e-05,200.6,200.59,4.9825]
[1738940637254,1.0,200.79,200.59,34.3292905]
[1738940637456,1.0,200.85,200.71,34.3292905]
[1738940637652,0.99576798,200.85,200.75,34.3292905]
[1738940637849,0.99576798,200.85,200.82,4.9766]
[1738940638150,0.99576798,200.85,200.75,34.3292905]
[1738940638356,0.99576798,200.85,200.75,4.9783]
[1738940638552,34.3292905,200.83,200.81,0.03716982]
[1738940638750,34.3292905,200.83,200.64,6.12]
[1738940639052,34.3292905,200.79,200.66,2.1548]
[1738940639348,4.9781,200.77,200.66,2.1548]
[1738940639547,3.1435,200.82,200.66,2.1548]
[1738940639548,3.1435,200.82,200.66,36.4840905]
[1738940639749,34.3292905,200.79,200.6,34.3292905]
[1738940639949,0.0367072,200.76,200.61,0.90507444]
[1738940640151,34.3292905,200.79,200.61,0.90507444]
[1738940640347,3.1435,200.82,200.64,34.3292905]
[1738940640545,0.03259374,200.71,200.64,34.3292905]
[1738940640747,0.03259374,200.71,200.7,4.9798]
[1738940641144,9.374e-05,200.71,200.7,4.9798]
[1738940641756,1.0,200.82,200.8,4.9772]
[1738940642055,1.0,200.88,200.73,34.3292905]
[1738940642247,1.0,200.88,200.77,34.3292905]
[1738940642450,1.0,200.88,200.83,4.9764]
[1738940642948,1.0,200.88,200.69,5.2599]
[1738940642949,0.03369251,200.86,200.82,0.03712652]
[1738940643358,34.3292905,200.83,200.69,5.2599]
[1738940643557,34.3292905,200.83,200.71,4.9793]
[1738940643853,1.0,200.82,200.69,5.2599]
[1738940644058,1.0,200.82,200.72,4.979]
[1738940644259,34.3292905,200.79,200.69,3.19]
[1738940644455,4.9788,200.74,200.69,3.19]
[1738940644752,34.3292905,200.75,200.69,3.19]
[1738940644950,0.03407037,200.74,200.69,3.19]
[1738940645151,4.9796,200.71,200.69,3.19]
[1738940645355,2.0215,200.73,200.56,34.3292905]
[1738940645553,4.9809,200.66,200.57,0.99715809]
[1738940645751,34.3292905,200.71,200.57,0.99715809]
[1738940645956,1.0,200.74,200.61,34.3292905]
[1738940646158,2.033e-05,200.64,200.61,34.3292905]
[1738940646456,1.0,200.74,200.57,35.32644859]
[1738940646656,4.9798,200.7,200.57,35.32644859]
[1738940647064,34.3292905,200.75,200.57,35.32644859]
[1738940647065,1.0,200.69,200.61,34.3292905]
[1738940647261,1.0,200.77,200.61,34.3292905]
[1738940647452,34.3292905,200.83,200.65,34.3292905]
[1738940647762,34.3292905,200.87,200.73,34.3292905]
[1738940648058,0.03704911,200.76,200.72,0.03603646]
[1738940648258,4.911e-05,200.76,200.69,34.3292905]
[1738940648459,34.3292905,200.87,200.69,34.3292905]
[1738940648663,4.9769,200.82,200.69,34.3292905]
[1738940648864,34.3292905,200.83,200.66,1.5902]
[1738940649257,4.9776,200.79,200.66,1.5902]
[1738940649453,4.9776,200.79,200.7,4.9796]
[1738940649454,34.3292905,200.79,200.7,4.9796]
[1738940649657,0.03621833,200.77,200.72,0.03272052]
[1738940650058,34.3292905,200.75,200.57,35.32644859]
[1738940650458,34.3292905,200.75,200.6,0.19457]
[1738940650654,34.3292905,200.75,200.62,4.9817]
[1738940650960,34.3292905,200.75,200.6,0.19457]
[1738940651159,5.0624,200.78,200.6,0.19457]
[1738940651354,0.03314944,200.71,200.66,0.03763718]
[1738940651966,4.9804,200.68,200.66,0.03763718]
[1738940652262,0.03314944,200.71,200.66,0.03763718]
[1738940652762,4.9805,200.67,200.66,0.03763718]
[1738940652965,34.3292905,200.68,200.6,0.19457]
[1738940653164,2.1066,200.67,200.6,0.19457]
[1738940653566,4.9813,200.64,200.6,0.19457]
[1738940653769,4.9813,200.64,200.45,34.3292905]
[1738940653770,34.3292905,200.64,200.45,34.3292905]
[1738940653963,34.3292905,200.64,200.45,35.32704555]
[1738940654266,0.03651393,200.57,200.45,0.99775505]
[1738940654471,34.36580443,200.57,200.45,0.99775505]
[1738940654659,0.03651393,200.57,200.45,0.99775505]
[1738940654865,0.03651393,200.57,200.46,2.1046]
[1738940655364,34.36580443,200.57,200.45,0.99775505]
[1738940655568,34.36580443,200.57,200.46,4.9855]
[1738940655770,4.9837,200.54,200.45,0.99775505]
[1738940655965,34.36580443,200.57,200.45,0.99775505]
[1738940656165,168.5767742,200.61,200.45,0.99775505]
[1738940656166,34.3292905,200.52,200.45,0.99775505]
[1738940656465,4.9857,200.46,200.35,2.1046]
[1738940656664,34.3292905,200.48,200.35,2.1046]
[1738940656665,34.3292905,200.43,200.35,2.1046]
[1738940656966,34.3292905,200.39,200.36,3.23e-06]
[1738940657867,0.03515258,200.4,200.36,3.23e-06]
[1738940658368,0.03515258,200.4,200.36,4.98800323]
[1738940658577,0.03515258,200.4,200.36,3.23e-06]
[1738940658964,0.03515258,200.4,200.24,37.1886905]
[1738940659165,4.13187827,200.39,200.25,0.99875156]
[1738940659674,34.3292905,200.33,200.25,0.99875156]
[1738940660091,0.03199334,200.34,200.25,0.99875156]
[1738940660273,34.3292905,200.33,200.25,0.99875156]
[1738940660476,34.3292905,200.33,200.26,4.9907]
[1738940660680,34.3292905,200.33,200.27,0.99865182]
[1738940661178,0.03823854,200.32,200.27,0.99865182]
[1738940662074,34.3292905,200.29,200.1,34.3292905]
[1738940662275,0.03823854,200.32,200.24,4.9911]
[1738940662483,4.9892,200.32,200.24,4.9911]
[1738940662677,4.0920211,200.31,200.24,4.9911]
[1738940662878,0.03159287,200.3,200.22,4.9915]
[1738940663074,4.0920211,200.29,200.17,34.3292905]
[1738940663379,0.03170068,200.25,200.13,34.3292905]
[1738940663579,34.6738902,200.21,200.04,34.6738902]
[1738940663770,34.6738902,200.17,199.99,37.5410902]
[1738940663970,4.1755,200.24,199.99,37.5410902]
[1738940664175,34.6738902,200.28,200.0,36.09167523]
[1738940664381,10.63349611,200.2,200.05,34.6738902]
[1738940664576,10.63349611,200.2,200.19,4.9924]
[1738940664777,9.611e-05,200.2,200.09,34.6738902]
[1738940664976,9.611e-05,200.2,200.13,34.6738902]
[1738940665177,34.6738902,200.32,200.17,34.6738902]
[1738940665372,34.6738902,200.32,200.1,34.6738902]
[1738940665373,34.6738902,200.32,200.13,34.6738902]
[1738940665571,34.6738902,200.32,200.14,3.09475197]
[1738940665772,0.03676531,200.27,200.22,0.03264616]
[1738940666688,0.03676531,200.27,200.24,4.9911]
[1738940666977,6.531e-05,200.27,200.22,0.03264616]
[1738940667383,6.531e-05,200.27,200.26,4.9907]
[1738940667781,6.531e-05,200.27,200.22,0.03264616]
[1738940669681,34.6738902,200.24,200.22,0.03264616]
[1738940669877,34.6738902,200.24,200.15,4.9933]
[1738940670073,34.6738902,200.24,200.08,2.047]
[1738940670385,3.0067,200.26,200.09,34.6738902]
[1738940670685,34.6738902,200.3,200.13,34.6738902]
[1738940671083,0.03290267,200.24,200.19,0.03474474]
[1738940671582,2.67e-06,200.24,200.19,0.03474474]
[1738940672176,2.67e-06,200.24,200.19,5.02704474]
[1738940672378,2.67e-06,200.24,200.19,0.03474474]
[1738940672783,2.67e-06,200.24,200.22,4.9916]
[1738940674679,34.6738902,200.6,200.22,4.9916]
[1738940674887,4.9238,200.46,200.28,34.6738902]
[1738940675086,4.9238,200.46,200.29,2.1595]
[1738940675381,2.0933,200.49,200.32,34.6738902]
[1738940675589,4.9238,200.52,200.36,34.6738902]
[1738940675777,262.32573059,200.43,200.41,4.9868]
[1738940675978,0.03807495,200.42,200.41,4.9868]
[1738940676179,2.1286,200.58,200.4,34.6738902]
[1738940676385,2.1286,200.58,200.5,4.9846]
[1738940676586,168.5767742,200.62,200.49,34.6738902]
[1738940677182,168.5767742,200.62,200.53,34.6738902]
[1738940677485,4.265e-05,200.58,200.57,39.6568902]
[1738940677685,160.8478742,200.62,200.57,34.6738902]
[1738940677880,34.6738902,200.8,200.61,34.6738902]
[1738940678081,1.24478643,200.79,200.61,34.6738902]
[1738940678282,5.2744,200.83,200.65,34.6738902]
[1738940678584,5.2744,200.83,200.72,4.9792]
[1738940678783,5.2744,200.83,200.65,34.6738902]
[1738940678990,34.6738902,200.81,200.61,34.6738902]
[1738940679186,34.6738902,200.77,200.57,34.6738902]
[1738940679386,34.6738902,200.73,200.54,2.0667]
[1738940679580,2.1453,200.72,200.54,2.0667]
[1738940679785,4.9796,200.71,200.54,2.0667]
[1738940679989,2.1453,200.72,200.54,2.0667]
[1738940680484,0.03414272,200.65,200.61,0.03357307]
[1738940681386,34.70803292,200.65,200.45,34.6738902]
[1738940681790,4.9814,200.64,200.5,4.9846]
[1738940682089,4.9814,200.64,200.49,34.6738902]
[1738940682489,4.9814,200.64,200.5,4.9846]
[1738940682692,0.03267386,200.59,200.54,0.03143393]
[1738940682989,0.03267386,200.59,200.57,39.6566902]
[1738940683192,2.1453,200.72,200.57,34.6738902]
[1738940683384,2.1453,200.72,200.61,34.6738902]
[1738940683586,2.1453,200.72,200.64,4.9811]
[1738940683983,4.9779,200.78,200.65,34.6738902]
[1738940684190,2.2148,200.78,200.65,34.6738902]
[1738940684586,0.03816012,200.74,200.69,0.03263863]
[1738940685085,4.9796,200.71,200.69,0.03263863]
[1738940685891,4.981,200.66,200.61,1.87]
[1738940687389,5.01817808,200.66,200.61,1.9046905]
[1738940687694,0.03717808,200.66,200.61,1.9046905]
[1738940689392,0.03717808,200.66,200.62,34.6738902]
[1738940689892,0.03717808,200.66,200.64,4.981]
[1738940690091,0.03717808,200.66,200.61,1.9046905]
[1738940690292,34.6738902,200.64,200.61,0.0346905]
[1738940690495,4.983,200.57,200.51,5.0484]
[1738940690801,34.6738902,200.64,200.43,34.6738902]
[1738940690999,1.24554896,200.63,200.47,34.6738902]
[1738940691291,34.6738902,200.64,200.47,34.6738902]
[1738940691498,34.6738902,200.64,200.48,1.9821]
[1738940691499,1.2455803,200.63,200.48,1.9821]
[1738940691700,34.6738902,200.64,200.48,1.9821]
[1738940691898,0.03684523,200.57,200.53,0.03544085]
[1738940692494,34.6738902,200.59,200.48,1.9821]
[1738940692691,34.6738902,200.59,200.44,2.0713]
[1738940692692,34.6738902,200.59,200.39,34.6738902]
[1738940692888,0.03590862,200.57,200.53,0.03608539]
[1738940693096,34.6738902,200.59,200.43,34.6738902]
[1738940693291,34.6738902,200.63,200.44,3.904]
[1738940693497,0.0364566,200.57,200.53,0.03287319]
[1738940693801,4.9837,200.54,200.53,0.03287319]
[1738940693996,0.0364566,200.57,200.53,0.03287319]
[1738940694191,4.9837,200.54,200.53,0.03287319]
[1738940695292,4.9856,200.47,200.41,1.9219]
[1738940695497,34.6738902,200.51,200.32,2.0804]
[1738940695694,34.6738902,200.51,200.27,98.7]
[1738940695901,34.6738902,200.47,200.22,2.0946]
[1738940696103,1.24649378,200.46,200.22,2.0946]
[1738940696398,34.6738902,200.5,200.31,2.6999]
[1738940696597,0.03262785,200.4,200.31,2.6999]
[1738940697697,4.9876,200.39,200.31,2.6999]
[1738940697899,34.70651805,200.4,200.22,2.0946]
[1738940698098,1.24686649,200.39,200.23,4.9914]
[1738940698297,1.24686649,200.38,200.2,36.6890902]
[1738940698498,0.03453206,200.33,200.27,34.6738902]
[1738940698797,34.6738902,200.44,200.27,34.6738902]
[1738940698995,1.24685899,200.43,200.27,34.6738902]
[1738940699197,34.6738902,200.5,200.31,34.6738902]
[1738940699393,1.24669425,200.49,200.31,34.6738902]
[1738940699592,1.24669425,200.48,200.35,34.6738902]
[1738940699797,34.6738902,200.54,200.36,4.7858]
[1738940699997,4.9853,200.48,200.39,4.9872]
[1738940700201,98.7,200.56,200.39,34.6738902]
[1738940700403,1.24620097,200.55,200.39,34.6738902]
[1738940700705,1.24620097,200.55,200.32,2.0152]
[1738940700706,0.03241195,200.46,200.41,0.03379933]
[1738940701101,4.9838,200.54,200.46,4.9855]
[1738940701297,34.6738902,200.51,200.33,4.7913]
[1738940701498,0.03807426,200.46,200.41,0.03822201]
[1738940701705,4.9867,200.42,200.41,0.03822201]
[1738940701902,34.6738902,200.43,200.32,4.7913]
[1738940702097,34.6738902,200.39,200.23,36.6193902]
[1738940702505,34.6738902,200.44,200.27,34.6738902]
[1738940702707,4.9872,200.4,200.31,4.9893]
[1738940702900,34.6738902,200.48,200.28,0.51]
[1738940703207,0.03174312,200.38,200.28,0.51]
[1738940703408,0.03174312,200.38,200.28,2.6195]
[1738940703707,34.6738902,200.44,200.28,2.6195]
[1738940703905,0.0330781,200.35,200.28,0.51]
[1738940704410,1.24684945,200.38,200.28,0.51]
[1738940704608,0.03582391,200.34,200.28,0.51]
[1738940706312,0.03582391,200.34,200.28,5.5001]
[1738940706507,0.03582391,200.34,200.28,0.51]
[1738940706707,0.03582391,200.34,200.3,34.6738902]
[1738940707004,0.03582391,200.34,200.33,4.989]